{"text_format":"3","workbook":"xlsx","n_sheets":3,"sheets":["Tabelle1","Tabelle2","Tabelle3"],"not_rendered":{"images":4},"read":"whole","date_system":"1900"}

{"sheet":"Tabelle1","index":0,"n_rows":79,"n_cols":6,"rows_kept":79,"merged":[[0,0,0,1],[1,0,1,1],[3,0,3,1],[5,0,5,4],[7,0,7,4],[9,0,9,4],[11,1,11,2],[12,1,12,2],[13,0,21,0],[13,1,13,2],[13,3,21,3],[13,4,21,4],[13,5,21,5],[14,1,14,2],[15,1,15,2],[16,1,16,2],[17,1,17,2],[18,1,18,2],[19,1,19,2],[20,1,20,2],[21,1,21,2],[22,1,22,2],[23,1,23,2],[24,1,24,2],[25,1,25,2],[26,1,26,2],[27,1,27,2],[28,1,28,2],[29,1,29,2],[30,1,30,2],[31,1,31,2],[32,1,32,2],[43,1,43,3],[45,1,45,3],[47,1,47,2],[51,1,51,2]]}
["Anhang ? "]
["Preisabfrageblatt"]
[]
["Projekt: Projektname"]
[]
["Felder, welche zwingend ausgefüllt werden müssen sind folgendermassen markiert"]
[]
["Felder, bei welchen entweder die eine oder andere Spalte ausgefüllt werden muss, sind folgendermassen markiert"]
[]
["Felder, welche je nach Fall und Ausgestaltung Angaben erfordern oder nicht"]
[]
[null,"Kostenposition",null,"CHF *)",null,"Art **)"]
[null,"Grundversion"]
[1,"Konzipierung, Realisierung und Einführung",null,null,{"$f":"D14","v":0},"F"]
[null,"Kosten für Realisierung und Implementierung des angebotenen Systems als Grundsystem für 80 Benutzer – davon 20 gleichzeitig (concurrent) mit Bearbeitungsrecht – inkl. allfällige Lizenzkosten für den Betrieb des Produktes im ersten Jahr – welches möglichst alle Anforderungen im Lastenheft ausser den unten aufgeführten separat bepreisten Anforderungen vollumfänglich erfüllt."]
[null,"weiter enthaltend:"]
[null,"- Alle geforderten Reports gemäss Anforderungen xxxxx und xxxxx des Lastenheftes"]
[null,"- Aufbereitung und Migration der Daten "]
[null,"- etc."]
[null,"- etc."]
[null,"- etc."]
[null,"- etc."]
[2,"- weitere separat bepreiste Anforderungen innerhalb der Grundversion, sofern gewünscht ",null,null,{"$f":"D23","v":0},"F"]
[3,"- weitere separat bepreiste Anforderungen innerhalb der Grundversion, sofern gewünscht ",null,null,0,"F"]
[4,"- weitere separat bepreiste Anforderungen innerhalb der Grundversion, sofern gewünscht ",null,null,0,"F"]
[5,"- weitere separat bepreiste Anforderungen innerhalb der Grundversion, sofern gewünscht ",null,null,0,"F"]
[6,"- weitere separat bepreiste Anforderungen innerhalb der Grundversion, sofern gewünscht ",null,null,0,"F"]
[7,"- weitere separat bepreiste Anforderungen innerhalb der Grundversion, sofern gewünscht ",null,null,0,"F"]
[8,"- weitere separat bepreiste Anforderungen innerhalb der Grundversion, sofern gewünscht ",null,null,0,"F"]
[9,"- weitere separat bepreiste Anforderungen innerhalb der Grundversion, sofern gewünscht ",null,null,0,"F"]
[10,"- weitere separat bepreiste Anforderungen innerhalb der Grundversion, sofern gewünscht ",null,null,0,"F"]
[11,"- weitere separat bepreiste Anforderungen innerhalb der Grundversion, sofern gewünscht ",null,null,{"$f":"D32","v":0},"F"]
[12,"- weitere separat bepreiste Anforderungen innerhalb der Grundversion, sofern gewünscht ",null,null,{"$f":"D33","v":0},"F"]
[null,"Total einmalige Kosten Grundversion ",null,null,{"$f":"SUM(E14:E33)","v":0},"F"]
[null,"Separat zu offerierende zusätzliche Anforderungen aus dem Lastenheft","Möglich\nJa/Nein\nBitte pro Anforderung auswählen","CHF*)\nFalls Anforderung im Grundsystem vorhanden\nKosten = 0."]
[13,"- zusätzliche Anforderung 1, separat bepreist (KANN)",null,null,{"$f":"D36","v":0},"F"]
[14,"- zusätzliche Anforderung 2, separat bepreist (KANN)",null,null,0,"F"]
[15,"- zusätzliche Anforderung 3, separat bepreist (KANN)",null,null,0,"F"]
[16,"- zusätzliche Anforderung 4, separat bepreist (KANN)",null,null,0,"F"]
[17,"- zusätzliche Anforderung 5, separat bepreist (KANN)",null,null,0,"F"]
[18,"- zusätzliche Anforderung 6, separat bepreist (KANN)",null,null,0]
[19,"- zusätzliche Anforderung 7, separat bepreist (KANN)",null,null,0,"F"]
[20,"- zusätzliche Anforderung 8, separat bepreist (KANN)",null,null,0,"F"]
[null,"Total Kosten der zusätzlichen Anforderungen aus dem Pflichtenheft",null,null,{"$f":"SUM(E36:E43)","v":0},"F"]
[]
[null,"Total einmalige Kosten",null,null,{"$f":"E34+E44","v":0},"F"]
[]
[null,"Aufteilung der einmaligen Kosten auf die Projektphasen"]
[null,"Total einmalige Kosten für Phase Konzept",{"$nulls":3},"I"]
[null,"Total einmalige Kosten für Phasen Realisierung und Einführung",{"$nulls":3},"I"]
[]
[null,"Lizenzen, welche einmalig erworben werden müssen"]
[null,"Total Kosten pro einzelner Lizenz und Mitarbeiter",null,null,{"$f":"D53","v":0}]
[null,"Total Kosten der Lizenzen, welche zusätzlich zu den bereits bestehenden erworben werden müssen",null,null,{"$f":"D54","v":0}]
[null,"Total einmalige Lizenzkosten (zusätzlich zu bestehenden)",null,null,{"$f":"SUM(E53:E54)","v":0},"F"]
[]
[null,"Kostenposition","%","CHF *)",null,"Art **)"]
[null,"Wiederkehrende Kosten"]
[null,"Geben Sie die Angaben für wiederkehrende Kosten als fixe Beträge oder alternativ in % der Summe \"Total einmalige Kosten Betriebs- und Anlagedatenbank\""]
[null,"Systemerhaltung, Fixes, Anpassung an neuere Versionen verwendeter Komponenten pro Jahr",null,null,{"$f":"D60","v":0},"F oder %"]
[null,"Hotline-Support 3rd Level zu üblichen Arbeitszeiten pro Jahr",null,null,{"$f":"D61","v":0},"F oder %"]
[null,"Andere jährlich anfallende Kosten, benennen Sie diese Kosten.\n",null,null,0,"F oder %"]
[null,"Total wiederkehrende Kosten pro Jahr",{"$f":"SUM(C60:C62)","v":{"v":0,"d":"0.00%"}},null,{"$f":"SUM(E60:E62)","v":0},"F oder %"]
[]
[null,"Voraussichtlich in den nächsten 8 Jahren anfallende weitere Kosten\n"]
[null,"Benennen Sie diese Kosten in den Zeilen 1 - 3"]
[1,{"$nulls":4},"F"]
[2,{"$nulls":4},"F"]
[3,{"$nulls":4},"F"]
[]
[null,"Tagesansatz für Entwickler "]
[null,"bei differenzierten Ansätzen, bitte Benennung in den Zeilen 5 und 6"]
[null,"Entwickler",{"$nulls":3},"F"]
[5,{"$nulls":4},"F"]
[6,{"$nulls":4},"F"]
[]
["*) ","Inklusive aller Nebenarbeiten und Nebenkosten - während der Projektdauer und dem 1. Wartungsjahr können keinerlei Reisekosten, Spesen etc. verrechnet werden. Preise sind Fix bis Projektende, anschliessend indexiert nach dem schweizerischen Konsumentenpreisindex. Die Preise sind exklusiv Mehrwertsteuer anzugeben."]
[]
["**) ","F=Festpreis, I=informative Angabe, %=Angabe in Prozent"]

{"sheet":"Tabelle2","index":1,"n_rows":2,"n_cols":1,"rows_kept":2}
["ja"]
["nein"]

{"sheet":"Tabelle3","index":2,"n_rows":0,"n_cols":0,"rows_kept":0}